[Event "*** SCC Grand Prix: Titled Tuesday Blitz"]
[Site "Chess.com"]
[Date "2020.06.09"]
[Round "1"]
[White "Mazetovic"]
[Black "londonkid"]
[Result "1-0"]
[WhiteElo "2623"]
[BlackElo "2306"]
[TimeControl "180+1"]
[EndTime "9:07:01 PDT"]
[Termination "Mazetovic won by resignation"]

1. e4 {[%clk 0:02:59.3]} 1... e6 {[%clk 0:03:00]} 2. d4 {[%clk 0:02:57]} 2... d5
{[%clk 0:03:00.1]} 3. Nc3 {[%clk 0:02:56.6]} 3... Nf6 {[%clk 0:02:59.1]} 4. Bg5
{[%clk 0:02:53.2]} 4... dxe4 {[%clk 0:02:59.2]} 5. Nxe4 {[%clk 0:02:51.1]} 5...
Nbd7 {[%clk 0:02:59.3]} 6. Nf3 {[%clk 0:02:47.3]} 6... Be7 {[%clk 0:02:58.6]} 7.
Nxf6+ {[%clk 0:02:45.9]} 7... Nxf6 {[%clk 0:02:57]} 8. Bd3 {[%clk 0:02:36.6]}
8... b6 {[%clk 0:02:56.9]} 9. Qe2 {[%clk 0:02:36]} 9... Bb7 {[%clk 0:02:56.6]}
10. O-O-O {[%clk 0:02:35.2]} 10... O-O {[%clk 0:02:56.9]} 11. Ne5 {[%clk
0:02:29.3]} 11... Nd5 {[%clk 0:02:55.1]} 12. Bxe7 {[%clk 0:02:16.7]} 12... Qxe7
{[%clk 0:02:52.1]} 13. Qe4 {[%clk 0:02:15.5]} 13... f5 {[%clk 0:02:20.6]} 14.
Qe1 {[%clk 0:02:06.6]} 14... Rac8 {[%clk 0:01:48.9]} 15. Kb1 {[%clk 0:01:59.3]}
15... c5 {[%clk 0:01:42.3]} 16. dxc5 {[%clk 0:01:56.7]} 16... bxc5 {[%clk
0:01:42.3]} 17. Bc4 {[%clk 0:01:54.8]} 17... Rfd8 {[%clk 0:01:31.8]} 18. f3
{[%clk 0:01:50.8]} 18... Rb8 {[%clk 0:01:11.2]} 19. Bb3 {[%clk 0:01:14.3]} 19...
Ba8 {[%clk 0:00:53.5]} 20. Qe2 {[%clk 0:01:10.2]} 20... a5 {[%clk 0:00:50.2]}
21. Rhe1 {[%clk 0:01:08.9]} 21... a4 {[%clk 0:00:48.8]} 22. Bxd5 {[%clk
0:01:08.8]} 22... Bxd5 {[%clk 0:00:45.8]} 23. c4 {[%clk 0:01:08.2]} 23... Ba8
{[%clk 0:00:42.6]} 24. Rxd8+ {[%clk 0:01:07.6]} 24... Rxd8 {[%clk 0:00:39.3]}
25. Rd1 {[%clk 0:01:06.9]} 25... Rd6 {[%clk 0:00:30.8]} 26. Rd3 {[%clk
0:00:58.9]} 26... Qd8 {[%clk 0:00:26.9]} 27. Qd2 {[%clk 0:00:56.6]} 27... Rd4
{[%clk 0:00:23.5]} 28. Rxd4 {[%clk 0:00:31]} 28... cxd4 {[%clk 0:00:23.3]} 29.
Nd3 {[%clk 0:00:31.1]} 29... h6 {[%clk 0:00:22.9]} 30. Qe2 {[%clk 0:00:29]}
30... Qd6 {[%clk 0:00:21.7]} 31. Qe5 {[%clk 0:00:28.2]} 31... Qxe5 {[%clk
0:00:18]} 32. Nxe5 {[%clk 0:00:28.1]} 32... Kf8 {[%clk 0:00:18.7]} 33. Kc2
{[%clk 0:00:27]} 33... Ke7 {[%clk 0:00:19.2]} 34. Kd3 {[%clk 0:00:27.4]} 34...
Kd6 {[%clk 0:00:18.5]} 35. Kxd4 {[%clk 0:00:27.7]} 35... Bb7 {[%clk 0:00:17.7]}
36. b4 {[%clk 0:00:27]} 36... a3 {[%clk 0:00:15.8]} 37. b5 {[%clk 0:00:23.2]}
37... g5 {[%clk 0:00:14.4]} 38. c5+ {[%clk 0:00:22]} 38... Kc7 {[%clk
0:00:14.7]} 39. c6 {[%clk 0:00:21.7]} 39... Bc8 {[%clk 0:00:15]} 40. Kc5 {[%clk
0:00:21.7]} 1-0

[Event "*** SCC Grand Prix: Titled Tuesday Blitz"]
[Site "Chess.com"]
[Date "2020.06.09"]
[Round "1"]
[White "Kimster98"]
[Black "shineatchess"]
[Result "1-0"]
[WhiteElo "2583"]
[BlackElo "2233"]
[TimeControl "180+1"]
[EndTime "9:07:04 PDT"]
[Termination "Kimster98 won on time"]

1. Nf3 {[%clk 0:03:00.5]} 1... Nf6 {[%clk 0:02:59]} 2. g3 {[%clk 0:03:01.4]}
2... d5 {[%clk 0:02:57.8]} 3. Bg2 {[%clk 0:03:01]} 3... e6 {[%clk 0:02:58]} 4.
O-O {[%clk 0:02:59.7]} 4... Be7 {[%clk 0:02:51.6]} 5. c4 {[%clk 0:02:57.4]} 5...
O-O {[%clk 0:02:49.9]} 6. b3 {[%clk 0:02:57.5]} 6... c5 {[%clk 0:02:47.3]} 7.
Bb2 {[%clk 0:02:57.8]} 7... Nc6 {[%clk 0:02:46]} 8. e3 {[%clk 0:02:58.3]} 8...
b6 {[%clk 0:02:33.5]} 9. Nc3 {[%clk 0:02:56.7]} 9... Ba6 {[%clk 0:02:28.4]} 10.
d3 {[%clk 0:02:51.5]} 10... Rc8 {[%clk 0:02:12.8]} 11. Qe2 {[%clk 0:02:46.6]}
11... Qc7 {[%clk 0:02:00.6]} 12. Rad1 {[%clk 0:02:40.5]} 12... Rfd8 {[%clk
0:01:57.8]} 13. Rfe1 {[%clk 0:02:39.4]} 13... h6 {[%clk 0:01:27.8]} 14. a3
{[%clk 0:02:18]} 14... Qb8 {[%clk 0:01:24]} 15. Qc2 {[%clk 0:02:16.2]} 15... Bb7
{[%clk 0:01:18.2]} 16. Qb1 {[%clk 0:02:14.8]} 16... Na5 {[%clk 0:01:11.2]} 17.
Ba1 {[%clk 0:02:08.6]} 17... Nc6 {[%clk 0:01:10.8]} 18. Bb2 {[%clk 0:02:07.6]}
18... Na5 {[%clk 0:01:09.7]} 19. Ba1 {[%clk 0:02:08.1]} 19... Nc6 {[%clk
0:01:08.6]} 20. cxd5 {[%clk 0:02:08.6]} 20... exd5 {[%clk 0:01:07.9]} 21. d4
{[%clk 0:02:06.2]} 21... cxd4 {[%clk 0:01:02.4]} 22. Nxd4 {[%clk 0:02:07.1]}
22... Bxa3 {[%clk 0:00:55]} 23. Nxc6 {[%clk 0:02:02.7]} 23... Bxc6 {[%clk
0:00:45.1]} 24. b4 {[%clk 0:02:02]} 24... a5 {[%clk 0:00:44.9]} 25. bxa5 {[%clk
0:01:51.5]} 25... bxa5 {[%clk 0:00:43.6]} 26. Qf5 {[%clk 0:01:52.1]} 26... Bb4
{[%clk 0:00:19.1]} 27. Rc1 {[%clk 0:01:37.6]} 27... Bd7 {[%clk 0:00:17.1]} 28.
Qd3 {[%clk 0:01:34.5]} 28... Be6 {[%clk 0:00:13]} 29. Red1 {[%clk 0:01:30.4]}
29... Qb7 {[%clk 0:00:08.1]} 30. Ne2 {[%clk 0:01:27.5]} 30... Be7 {[%clk
0:00:05.4]} 31. Nd4 {[%clk 0:01:18.6]} 31... Rxc1 {[%clk 0:00:05.2]} 32. Rxc1
{[%clk 0:01:18.3]} 32... Qd7 {[%clk 0:00:05.9]} 33. Nb3 {[%clk 0:01:09]} 33...
a4 {[%clk 0:00:05.1]} 34. Nc5 {[%clk 0:01:09.4]} 34... Bxc5 {[%clk 0:00:05.2]}
35. Rxc5 {[%clk 0:01:10.3]} 35... Rc8 {[%clk 0:00:05.2]} 36. Qc2 {[%clk
0:01:04.4]} 36... Rxc5 {[%clk 0:00:04.5]} 37. Qxc5 {[%clk 0:01:05.3]} 37... Ne4
{[%clk 0:00:04.6]} 38. Qd4 {[%clk 0:01:03.2]} 38... f6 {[%clk 0:00:03.3]} 39.
Bb2 {[%clk 0:01:00.4]} 39... Bf5 {[%clk 0:00:02.4]} 40. Ba3 {[%clk 0:00:57.2]}
40... Qb7 {[%clk 0:00:01.9]} 41. Bf1 {[%clk 0:00:55.3]} 41... Qb1 {[%clk
0:00:01.7]} 42. Qxd5+ {[%clk 0:00:54.1]} 1-0

[Event "*** SCC Grand Prix: Titled Tuesday Blitz"]
[Site "Chess.com"]
[Date "2020.06.09"]
[Round "1"]
[White "djano"]
[Black "Gloomy_Wanderer"]
[Result "0-1"]
[WhiteElo "2411"]
[BlackElo "2784"]
[TimeControl "180+1"]
[EndTime "9:07:05 PDT"]
[Termination "Gloomy_Wanderer won by resignation"]

1. d4 {[%clk 0:02:55.1]} 1... Nf6 {[%clk 0:02:59.1]} 2. Nf3 {[%clk 0:02:56]}
2... e6 {[%clk 0:02:58.8]} 3. Bf4 {[%clk 0:02:56]} 3... b6 {[%clk 0:02:58.6]} 4.
Nbd2 {[%clk 0:02:54.8]} 4... Be7 {[%clk 0:02:56.1]} 5. e3 {[%clk 0:02:55.1]}
5... O-O {[%clk 0:02:54.4]} 6. h3 {[%clk 0:02:55.2]} 6... c5 {[%clk 0:02:54.4]}
7. c3 {[%clk 0:02:54.5]} 7... d6 {[%clk 0:02:54]} 8. Bd3 {[%clk 0:02:53.9]} 8...
cxd4 {[%clk 0:02:54.1]} 9. exd4 {[%clk 0:02:53.7]} 9... Ba6 {[%clk 0:02:54.1]}
10. Bxa6 {[%clk 0:02:50.4]} 10... Nxa6 {[%clk 0:02:54.2]} 11. Qe2 {[%clk
0:02:51.3]} 11... Nc7 {[%clk 0:02:54.4]} 12. O-O {[%clk 0:02:50.6]} 12... h6
{[%clk 0:02:54.5]} 13. a4 {[%clk 0:02:49.9]} 13... Qd7 {[%clk 0:02:54.3]} 14. a5
{[%clk 0:02:49.3]} 14... b5 {[%clk 0:02:54.4]} 15. Rfe1 {[%clk 0:02:48.6]} 15...
a6 {[%clk 0:02:53.8]} 16. Bh2 {[%clk 0:02:48.5]} 16... Ncd5 {[%clk 0:02:53.7]}
17. Ne4 {[%clk 0:02:43.5]} 17... Rfc8 {[%clk 0:02:53.1]} 18. Nfd2 {[%clk
0:02:42]} 18... Rc6 {[%clk 0:02:40]} 19. Nxf6+ {[%clk 0:02:36]} 19... Nxf6
{[%clk 0:02:40.9]} 20. Ne4 {[%clk 0:02:36.5]} 20... Nd5 {[%clk 0:02:40]} 21. Qf3
{[%clk 0:02:26.5]} 21... Rac8 {[%clk 0:02:37.9]} 22. Re2 {[%clk 0:02:17.5]}
22... b4 {[%clk 0:02:32]} 23. cxb4 {[%clk 0:02:14.8]} 23... Rc1+ {[%clk
0:02:30.7]} 24. Re1 {[%clk 0:02:15]} 24... Rxa1 {[%clk 0:02:30.9]} 25. Rxa1
{[%clk 0:02:15]} 25... Nxb4 {[%clk 0:02:31.6]} 26. Qb3 {[%clk 0:02:00.8]} 26...
Nd5 {[%clk 0:02:19.8]} 27. Bg3 {[%clk 0:01:57.4]} 27... Qc6 {[%clk 0:02:07.1]}
28. Kh2 {[%clk 0:01:56.1]} 28... f5 {[%clk 0:02:02.5]} 29. f3 {[%clk 0:01:30.1]}
29... fxe4 {[%clk 0:01:55.1]} 30. fxe4 {[%clk 0:01:29.8]} 30... Nc7 {[%clk
0:01:55.8]} 31. Re1 {[%clk 0:01:22.6]} 31... Kh8 {[%clk 0:01:37.1]} 32. Qb6
{[%clk 0:01:16.8]} 32... Qxb6 {[%clk 0:01:16.3]} 33. axb6 {[%clk 0:01:17.7]}
33... Nb5 {[%clk 0:01:17]} 34. Ra1 {[%clk 0:01:12.7]} 34... Rb8 {[%clk
0:01:13.2]} 35. Rxa6 {[%clk 0:01:12.3]} 35... Bd8 {[%clk 0:01:12.6]} 36. Ra5
{[%clk 0:01:10.4]} 36... Nxd4 {[%clk 0:01:02.4]} 37. Bxd6 {[%clk 0:01:10.4]}
37... Bxb6 {[%clk 0:01:02.5]} 38. Ra6 {[%clk 0:01:03.2]} 38... Rb7 {[%clk
0:01:02.4]} 39. b4 {[%clk 0:00:58.1]} 39... Nb5 {[%clk 0:00:55.5]} 40. Bg3
{[%clk 0:00:55.9]} 40... Kg8 {[%clk 0:00:54.1]} 41. h4 {[%clk 0:00:51.9]} 41...
Kf7 {[%clk 0:00:52]} 42. h5 {[%clk 0:00:52.4]} 42... Kf6 {[%clk 0:00:49.7]} 43.
Ra1 {[%clk 0:00:50.2]} 43... Kg5 {[%clk 0:00:47.1]} 44. Rf1 {[%clk 0:00:47.4]}
44... Kxh5 {[%clk 0:00:45.9]} 45. e5 {[%clk 0:00:47.9]} 45... Nd4 {[%clk
0:00:44.6]} 46. Bf2 {[%clk 0:00:46.5]} 46... Nf5 {[%clk 0:00:42.9]} 47. Be1
{[%clk 0:00:45.6]} 47... Bd4 {[%clk 0:00:41.3]} 48. Kh3 {[%clk 0:00:45.1]} 48...
Kg6 {[%clk 0:00:36.8]} 49. g4 {[%clk 0:00:45.5]} 49... Ne3 {[%clk 0:00:37.2]}
50. Rf3 {[%clk 0:00:44.7]} 50... Nd5 {[%clk 0:00:37.2]} 0-1

[Event "*** SCC Grand Prix: Titled Tuesday Blitz"]
[Site "Chess.com"]
[Date "2020.06.09"]
[Round "1"]
[White "Funo09"]
[Black "Grandmaster2B"]
[Result "1-0"]
[WhiteElo "2814"]
[BlackElo "2427"]
[TimeControl "180+1"]
[EndTime "9:07:06 PDT"]
[Termination "Funo09 won on time"]

1. e4 {[%clk 0:03:00.9]} 1... c5 {[%clk 0:02:58.3]} 2. Nc3 {[%clk 0:03:01.4]}
2... Nc6 {[%clk 0:02:57.1]} 3. Bb5 {[%clk 0:03:01.8]} 3... g6 {[%clk 0:02:57]}
4. Bxc6 {[%clk 0:03:02]} 4... dxc6 {[%clk 0:02:57.9]} 5. f4 {[%clk 0:03:02.7]}
5... Bg7 {[%clk 0:02:57.6]} 6. Nf3 {[%clk 0:03:03.6]} 6... e6 {[%clk 0:02:51.3]}
7. O-O {[%clk 0:03:03.9]} 7... Ne7 {[%clk 0:02:51.9]} 8. d3 {[%clk 0:03:04.4]}
8... O-O {[%clk 0:02:48.4]} 9. e5 {[%clk 0:03:03.6]} 9... b6 {[%clk 0:02:44]}
10. Ne4 {[%clk 0:03:03]} 10... Ba6 {[%clk 0:02:40.8]} 11. b3 {[%clk 0:03:03]}
11... Nf5 {[%clk 0:02:29.5]} 12. Qd2 {[%clk 0:02:58.3]} 12... Nd4 {[%clk
0:02:22.1]} 13. Bb2 {[%clk 0:02:58.3]} 13... Nxc2 {[%clk 0:02:16.2]} 14. Rad1
{[%clk 0:02:35.7]} 14... Nb4 {[%clk 0:02:08.7]} 15. a3 {[%clk 0:01:48.2]} 15...
Nxd3 {[%clk 0:02:02.2]} 16. Ba1 {[%clk 0:01:44.5]} 16... Qd5 {[%clk 0:01:26.1]}
17. Nf6+ {[%clk 0:01:21.3]} 17... Bxf6 {[%clk 0:01:25.4]} 18. exf6 {[%clk
0:01:22.2]} 18... Qh5 {[%clk 0:00:43.4]} 19. Qe3 {[%clk 0:01:01.2]} 19... Rad8
{[%clk 0:00:39.1]} 20. h3 {[%clk 0:01:00.4]} 20... c4 {[%clk 0:00:27.7]} 21. b4
{[%clk 0:00:58.6]} 21... c5 {[%clk 0:00:17.4]} 22. Ng5 {[%clk 0:00:54.2]} 22...
Rfe8 {[%clk 0:00:10.1]} 23. bxc5 {[%clk 0:00:51.8]} 23... Nxc5 {[%clk
0:00:06.8]} 24. Rxd8 {[%clk 0:00:45.2]} 24... Rxd8 {[%clk 0:00:07.7]} 25. Qe5
{[%clk 0:00:44]} 25... c3 {[%clk 0:00:07.8]} 26. Qc7 {[%clk 0:00:43.9]} 26...
Rf8 {[%clk 0:00:07.4]} 27. Rc1 {[%clk 0:00:35.7]} 27... Qe2 {[%clk 0:00:04.3]}
28. Rxc3 {[%clk 0:00:32.7]} 28... Qe1+ {[%clk 0:00:03.5]} 29. Kh2 {[%clk
0:00:32.7]} 29... Qxa1 {[%clk 0:00:03.8]} 30. Qe5 {[%clk 0:00:24.8]} 30... Nd7
{[%clk 0:00:02.4]} 31. Qd4 {[%clk 0:00:24.5]} 31... Qf1 {[%clk 0:00:01.1]} 32.
Nf3 {[%clk 0:00:19.7]} 32... Nc5 {[%clk 0:00:01.6]} 33. Qe5 {[%clk 0:00:18.3]}
33... Qb5 {[%clk 0:00:02.2]} 34. Qg5 {[%clk 0:00:18.1]} 34... Qd7 {[%clk
0:00:02.8]} 35. Qh6 {[%clk 0:00:17.8]} 1-0

[Event "*** SCC Grand Prix: Titled Tuesday Blitz"]
[Site "Chess.com"]
[Date "2020.06.09"]
[Round "1"]
[White "Baronessa08"]
[Black "attack2mateU"]
[Result "0-1"]
[WhiteElo "2373"]
[BlackElo "2714"]
[TimeControl "180+1"]
[EndTime "9:07:06 PDT"]
[Termination "attack2mateU won on time"]

1. c4 {[%clk 0:02:56.2]} 1... g6 {[%clk 0:02:59.5]} 2. Nc3 {[%clk 0:02:55.2]}
2... c5 {[%clk 0:02:55.7]} 3. g3 {[%clk 0:02:55]} 3... Bg7 {[%clk 0:02:55.3]} 4.
Bg2 {[%clk 0:02:49.7]} 4... Nc6 {[%clk 0:02:55.1]} 5. Nf3 {[%clk 0:02:49.5]}
5... d6 {[%clk 0:02:54.7]} 6. O-O {[%clk 0:02:49.4]} 6... Bf5 {[%clk 0:02:54.1]}
7. d3 {[%clk 0:02:48.8]} 7... Qd7 {[%clk 0:02:53.5]} 8. Re1 {[%clk 0:02:48]}
8... e5 {[%clk 0:02:46.9]} 9. e4 {[%clk 0:02:39.6]} 9... Bg4 {[%clk 0:02:44.3]}
10. Qa4 {[%clk 0:02:25.2]} 10... Nge7 {[%clk 0:02:35]} 11. Nd5 {[%clk
0:02:20.5]} 11... Nxd5 {[%clk 0:02:32.6]} 12. exd5 {[%clk 0:02:17.2]} 12... Nb4
{[%clk 0:02:30.1]} 13. Qb3 {[%clk 0:02:14.8]} 13... Qf5 {[%clk 0:01:52.6]} 14.
Re3 {[%clk 0:00:40.2]} 14... O-O {[%clk 0:01:35.8]} 15. Bd2 {[%clk 0:00:40]}
15... a5 {[%clk 0:01:18.6]} 16. Nh4 {[%clk 0:00:34.4]} 16... Qc8 {[%clk
0:01:06.2]} 17. a4 {[%clk 0:00:16.6]} 17... Bh6 {[%clk 0:01:00]} 18. Bxb4 {[%clk
0:00:12.7]} 18... Bxe3 {[%clk 0:00:58.2]} 19. fxe3 {[%clk 0:00:11.9]} 19... axb4
{[%clk 0:00:57.3]} 20. Qc2 {[%clk 0:00:11.2]} 20... Bd7 {[%clk 0:00:26.7]} 21.
b3 {[%clk 0:00:11]} 21... Qd8 {[%clk 0:00:27.1]} 22. Rf1 {[%clk 0:00:09.8]}
22... Qg5 {[%clk 0:00:27.4]} 23. Qd2 {[%clk 0:00:08.6]} 23... f5 {[%clk
0:00:26.9]} 24. Nf3 {[%clk 0:00:08.7]} 24... Qh6 {[%clk 0:00:27.5]} 25. Qe1
{[%clk 0:00:07.5]} 25... Rae8 {[%clk 0:00:27.2]} 26. Kh1 {[%clk 0:00:04.3]}
26... g5 {[%clk 0:00:26.7]} 27. Ng1 {[%clk 0:00:04.2]} 27... f4 {[%clk
0:00:24.5]} 28. gxf4 {[%clk 0:00:02.6]} 28... exf4 {[%clk 0:00:24.4]} 29. Be4
{[%clk 0:00:02.4]} 29... g4 {[%clk 0:00:16.1]} 30. exf4 {[%clk 0:00:02.3]} 30...
Rxf4 {[%clk 0:00:17]} 31. Qd2 {[%clk 0:00:01.6]} 31... Ref8 {[%clk 0:00:14.2]}
0-1

[Event "*** SCC Grand Prix: Titled Tuesday Blitz"]
[Site "Chess.com"]
[Date "2020.06.09"]
[Round "1"]
[White "Maxim_e2e4"]
[Black "GMNickPert"]
[Result "1-0"]
[WhiteElo "2359"]
[BlackElo "2637"]
[TimeControl "180+1"]
[EndTime "9:07:07 PDT"]
[Termination "Maxim_e2e4 won by checkmate"]

1. e4 {[%clk 0:02:59.3]} 1... c5 {[%clk 0:03:00.2]} 2. Nf3 {[%clk 0:02:58]} 2...
Nc6 {[%clk 0:03:00.8]} 3. d4 {[%clk 0:02:57.5]} 3... cxd4 {[%clk 0:03:01.7]} 4.
Nxd4 {[%clk 0:02:58]} 4... e5 {[%clk 0:03:02.3]} 5. Nb5 {[%clk 0:02:57.4]} 5...
d6 {[%clk 0:03:02.9]} 6. c4 {[%clk 0:02:57.4]} 6... Be7 {[%clk 0:03:02.6]} 7.
N5c3 {[%clk 0:02:50.3]} 7... Nf6 {[%clk 0:03:01.9]} 8. Be2 {[%clk 0:02:37.7]}
8... Be6 {[%clk 0:03:00.2]} 9. Be3 {[%clk 0:02:34.1]} 9... Rc8 {[%clk
0:02:57.9]} 10. O-O {[%clk 0:02:27.1]} 10... O-O {[%clk 0:02:57.6]} 11. Nd2
{[%clk 0:02:17.3]} 11... Nd4 {[%clk 0:02:57.1]} 12. Nd5 {[%clk 0:02:02.7]} 12...
Nxd5 {[%clk 0:02:46.7]} 13. cxd5 {[%clk 0:01:58.9]} 13... Nxe2+ {[%clk
0:02:43.9]} 14. Qxe2 {[%clk 0:01:56.2]} 14... Bd7 {[%clk 0:02:44.8]} 15. Bxa7
{[%clk 0:01:30.9]} 15... Qa5 {[%clk 0:02:43.6]} 16. Be3 {[%clk 0:01:27.2]} 16...
Bb5 {[%clk 0:02:42.8]} 17. Qg4 {[%clk 0:01:15.4]} 17... Bxf1 {[%clk 0:02:41.2]}
18. Nxf1 {[%clk 0:01:16.3]} 18... f5 {[%clk 0:02:34.7]} 19. exf5 {[%clk
0:01:09.5]} 19... Qxd5 {[%clk 0:02:34.5]} 20. Ng3 {[%clk 0:01:02.3]} 20... Rc4
{[%clk 0:02:33.3]} 21. Qe2 {[%clk 0:01:01.3]} 21... e4 {[%clk 0:02:27.2]} 22.
Rd1 {[%clk 0:00:58.1]} 22... Qc6 {[%clk 0:02:26.9]} 23. Qg4 {[%clk 0:00:49.1]}
23... Bf6 {[%clk 0:02:08.1]} 24. b3 {[%clk 0:00:42]} 24... Rb4 {[%clk
0:01:31.6]} 25. h4 {[%clk 0:00:36.3]} 25... Qc2 {[%clk 0:01:16.8]} 26. Rxd6
{[%clk 0:00:24.5]} 26... Qxa2 {[%clk 0:00:53.8]} 27. Nh5 {[%clk 0:00:20.4]}
27... Qa1+ {[%clk 0:00:54]} 28. Rd1 {[%clk 0:00:19.7]} 28... Qe5 {[%clk
0:00:52.4]} 29. g3 {[%clk 0:00:15.3]} 29... Rxb3 {[%clk 0:00:48.5]} 30. Bd4
{[%clk 0:00:13.9]} 30... Qe7 {[%clk 0:00:18.7]} 31. Bxf6 {[%clk 0:00:13.7]}
31... Rxf6 {[%clk 0:00:19.6]} 32. Rd7 {[%clk 0:00:13.8]} 32... Rb1+ {[%clk
0:00:14.8]} 33. Kg2 {[%clk 0:00:12.9]} 33... Qf8 {[%clk 0:00:13.5]} 34. Rxg7+
{[%clk 0:00:11.3]} 34... Kh8 {[%clk 0:00:13.9]} 35. Nxf6 {[%clk 0:00:11.3]}
35... h5 {[%clk 0:00:12.4]} 36. Rg8+ {[%clk 0:00:10.9]} 36... Qxg8 {[%clk
0:00:12.7]} 37. Qxg8# {[%clk 0:00:11.8]} 1-0

[Event "*** SCC Grand Prix: Titled Tuesday Blitz"]
[Site "Chess.com"]
[Date "2020.06.09"]
[Round "1"]
[White "LisikValera"]
[Black "wonderfultime"]
[Result "0-1"]
[WhiteElo "2465"]
[BlackElo "2985"]
[TimeControl "180+1"]
[EndTime "9:07:09 PDT"]
[Termination "wonderfultime won on time"]

1. d4 {[%clk 0:02:57.5]} 1... d5 {[%clk 0:02:46.9]} 2. Bf4 {[%clk 0:02:56.6]}
2... Nf6 {[%clk 0:02:46.6]} 3. e3 {[%clk 0:02:56.8]} 3... e6 {[%clk 0:02:47.2]}
4. Nd2 {[%clk 0:02:55]} 4... Bd6 {[%clk 0:02:47.4]} 5. Bg3 {[%clk 0:02:54.2]}
5... c5 {[%clk 0:02:47.9]} 6. c3 {[%clk 0:02:54.2]} 6... O-O {[%clk 0:02:48.3]}
7. f4 {[%clk 0:02:53.4]} 7... b6 {[%clk 0:02:29.2]} 8. Ngf3 {[%clk 0:02:52.4]}
8... Bb7 {[%clk 0:02:29.6]} 9. Bh4 {[%clk 0:02:50.2]} 9... Be7 {[%clk
0:02:28.9]} 10. Bd3 {[%clk 0:02:49.2]} 10... Ne4 {[%clk 0:02:27.5]} 11. Bxe7
{[%clk 0:02:48.3]} 11... Qxe7 {[%clk 0:02:28.4]} 12. O-O {[%clk 0:02:47.7]}
12... Nd7 {[%clk 0:02:27.4]} 13. Ne5 {[%clk 0:02:47.1]} 13... Ndf6 {[%clk
0:02:08.8]} 14. Nxe4 {[%clk 0:02:40.1]} 14... dxe4 {[%clk 0:02:05.7]} 15. Bc4
{[%clk 0:02:40]} 15... Rac8 {[%clk 0:01:59.4]} 16. Qe2 {[%clk 0:02:37.8]} 16...
Bd5 {[%clk 0:01:50.9]} 17. b3 {[%clk 0:02:22.3]} 17... cxd4 {[%clk 0:01:43.5]}
18. cxd4 {[%clk 0:02:21.8]} 18... Ne8 {[%clk 0:01:25.8]} 19. Bxd5 {[%clk
0:02:12]} 19... exd5 {[%clk 0:01:24.4]} 20. Rfc1 {[%clk 0:02:11.7]} 20... Nd6
{[%clk 0:01:22.4]} 21. Nc6 {[%clk 0:01:59.2]} 21... Qd7 {[%clk 0:01:21]} 22. Nb4
{[%clk 0:01:58.5]} 22... Nf5 {[%clk 0:01:18.1]} 23. Kf2 {[%clk 0:01:44.8]} 23...
g6 {[%clk 0:01:15.9]} 24. a4 {[%clk 0:01:34.7]} 24... Qd6 {[%clk 0:00:56.4]} 25.
Qd2 {[%clk 0:01:20.3]} 25... g5 {[%clk 0:00:41]} 26. g3 {[%clk 0:01:18.5]} 26...
a5 {[%clk 0:00:37.4]} 27. Nc2 {[%clk 0:01:11.2]} 27... Qh6 {[%clk 0:00:37]} 28.
Kg2 {[%clk 0:01:04.7]} 28... Kh8 {[%clk 0:00:34.2]} 29. Na3 {[%clk 0:00:42.9]}
29... gxf4 {[%clk 0:00:33.1]} 30. exf4 {[%clk 0:00:43.1]} 30... Rg8 {[%clk
0:00:31.6]} 31. Rxc8 {[%clk 0:00:38.4]} 31... Rxc8 {[%clk 0:00:32.5]} 32. Rc1
{[%clk 0:00:26.2]} 32... Rg8 {[%clk 0:00:30.4]} 33. Nb5 {[%clk 0:00:14.3]} 33...
e3 {[%clk 0:00:27.2]} 34. Qe2 {[%clk 0:00:11.3]} 34... Qxf4 {[%clk 0:00:27.2]}
35. Rf1 {[%clk 0:00:10.1]} 35... Nxg3 {[%clk 0:00:20.7]} 0-1

[Event "*** SCC Grand Prix: Titled Tuesday Blitz"]
[Site "Chess.com"]
[Date "2020.06.09"]
[Round "1"]
[White "yobdc"]
[Black "Skatchkov_V"]
[Result "0-1"]
[WhiteElo "2196"]
[BlackElo "2559"]
[TimeControl "180+1"]
[EndTime "9:07:09 PDT"]
[Termination "Skatchkov_V won on time"]

1. c4 {[%clk 0:03:00.9]} 1... e5 {[%clk 0:02:59.4]} 2. Nc3 {[%clk 0:03:00.2]}
2... Nf6 {[%clk 0:02:59.9]} 3. g3 {[%clk 0:03:00.6]} 3... d5 {[%clk 0:03:00.3]}
4. cxd5 {[%clk 0:03:00.5]} 4... Nxd5 {[%clk 0:03:01.1]} 5. Bg2 {[%clk
0:03:01.1]} 5... Nb6 {[%clk 0:03:01.8]} 6. Nf3 {[%clk 0:03:01]} 6... Nc6 {[%clk
0:03:02]} 7. a3 {[%clk 0:03:00.7]} 7... Be7 {[%clk 0:03:02]} 8. b4 {[%clk
0:03:00.5]} 8... Be6 {[%clk 0:02:59.6]} 9. Rb1 {[%clk 0:02:59.4]} 9... f6 {[%clk
0:02:52.9]} 10. d3 {[%clk 0:02:50.1]} 10... O-O {[%clk 0:02:52.6]} 11. b5 {[%clk
0:02:49.6]} 11... Nd4 {[%clk 0:02:51.9]} 12. Nd2 {[%clk 0:02:49.8]} 12... Qc8
{[%clk 0:02:49.1]} 13. e3 {[%clk 0:02:46.3]} 13... Nf5 {[%clk 0:02:49.2]} 14.
Qc2 {[%clk 0:02:43.4]} 14... Rd8 {[%clk 0:02:49.2]} 15. O-O {[%clk 0:02:32.6]}
15... a6 {[%clk 0:02:44.4]} 16. a4 {[%clk 0:01:28.3]} 16... axb5 {[%clk
0:02:44.3]} 17. axb5 {[%clk 0:01:28.6]} 17... Nd6 {[%clk 0:02:44.6]} 18. Nde4
{[%clk 0:01:19.5]} 18... Kh8 {[%clk 0:02:33.5]} 19. Nc5 {[%clk 0:01:19.1]} 19...
Bf7 {[%clk 0:02:33.8]} 20. Rd1 {[%clk 0:01:16.1]} 20... Ra7 {[%clk 0:02:33.8]}
21. Bb2 {[%clk 0:01:00.8]} 21... Nf5 {[%clk 0:02:21.6]} 22. N3e4 {[%clk
0:00:58]} 22... Nd5 {[%clk 0:01:58.3]} 23. Ra1 {[%clk 0:00:37.5]} 23... Rxa1
{[%clk 0:01:45.4]} 24. Rxa1 {[%clk 0:00:34.7]} 24... c6 {[%clk 0:01:31]} 25.
bxc6 {[%clk 0:00:28.6]} 25... Qxc6 {[%clk 0:01:31.4]} 26. Rc1 {[%clk 0:00:20.1]}
26... Qb6 {[%clk 0:01:25.4]} 27. Na4 {[%clk 0:00:15.8]} 27... Qa5 {[%clk
0:01:17.4]} 28. Nec3 {[%clk 0:00:08.2]} 28... Nb4 {[%clk 0:01:17]} 29. Qe2
{[%clk 0:00:07.6]} 29... Nxd3 {[%clk 0:01:16]} 30. Rd1 {[%clk 0:00:07.3]} 30...
Nxb2 {[%clk 0:01:11.4]} 31. Rxd8+ {[%clk 0:00:07.2]} 31... Bxd8 {[%clk
0:01:04.1]} 32. Qxb2 {[%clk 0:00:08.1]} 32... Be8 {[%clk 0:00:53.2]} 33. Qxb7
{[%clk 0:00:05.5]} 33... Bxa4 {[%clk 0:00:45.9]} 34. Qc8 {[%clk 0:00:05.9]}
34... Bc2 {[%clk 0:00:42.6]} 35. Bh3 {[%clk 0:00:02.7]} 35... Ne7 {[%clk
0:00:40.8]} 36. Qd7 {[%clk 0:00:03]} 36... h6 {[%clk 0:00:33.7]} 37. Ne4 {[%clk
0:00:01.9]} 37... Bxe4 {[%clk 0:00:33.6]} 0-1